[Event "Titled Tuesday Blitz April 25 Early 2023"]
[White "Inepton_Fermion"]
[Black "Shimelkov, Vasiliy"]
[BlackFideId "13701630"]
[WhiteElo "2339"]
[BlackElo "2073"]
[Result "1/2-1/2"]
[Round "09"]
[TimeControl "180+2"]
[Date "2023.04.25"]
[WhiteClock "0:00:03"]
[BlackClock "0:00:19"]

1. e4 {[%clk 0:03:00]}  c5 {[%clk 0:02:56]} 2. Nf3 {[%clk 0:03:01]}  Nc6 {[%clk 0:02:56]} 3. d4 {[%clk 0:03:01]}  cxd4 {[%clk 0:02:56]} 4. Nxd4 {[%clk 0:03:02]}  Nf6 {[%clk 0:02:56]} 5. Nc3 {[%clk 0:03:02]}  e6 {[%clk 0:02:56]} 6. Nxc6 {[%clk 0:02:57]}  bxc6 {[%clk 0:02:55]} 7. e5 {[%clk 0:02:57]}  Nd5 {[%clk 0:02:55]} 8. Ne4 {[%clk 0:02:57]}  Qc7 {[%clk 0:02:55]} 9. f4 {[%clk 0:02:57]}  Qb6 {[%clk 0:02:38]} 10. c4 {[%clk 0:02:56]}  Bb4+ {[%clk 0:02:36]} 11. Ke2 {[%clk 0:02:57]}  f5 {[%clk 0:02:33]} 12. exf6 {[%clk 0:02:14]}  Nxf6 {[%clk 0:02:29]} 13. Be3 {[%clk 0:02:14]}  Qc7 {[%clk 0:02:22]} 14. Nxf6+ {[%clk 0:02:02]}  gxf6 {[%clk 0:02:22]} 15. Kf2 {[%clk 0:02:03]}  Bb7 {[%clk 0:02:11]} 16. Qh5+ {[%clk 0:02:02]}  Ke7 {[%clk 0:02:06]} 17. a3 {[%clk 0:01:53]}  Qa5 {[%clk 0:01:52]} 18. Qd1 {[%clk 0:01:26]}  Bc5 {[%clk 0:01:46]} 19. b4 {[%clk 0:01:24]}  Bxe3+ {[%clk 0:01:46]} 20. Kxe3 {[%clk 0:01:25]}  Qc7 {[%clk 0:01:44]} 21. c5 {[%clk 0:01:15]}  e5 {[%clk 0:01:39]} 22. Kf2 {[%clk 0:01:06]}  Rad8 {[%clk 0:01:34]} 23. Bc4 {[%clk 0:01:01]}  d5 {[%clk 0:01:32]} 24. cxd6+ {[%clk 0:01:02]}  Rxd6 {[%clk 0:01:28]} 25. Qh5 {[%clk 0:00:47]}  Kd8 {[%clk 0:01:17]} 26. Rhd1 {[%clk 0:00:43]}  Kc8 {[%clk 0:01:14]} 27. Rxd6 {[%clk 0:00:41]}  Qxd6 {[%clk 0:01:14]} 28. Rd1 {[%clk 0:00:42]}  Qe7 {[%clk 0:01:09]} 29. Qf5+ {[%clk 0:00:32]}  Kc7 {[%clk 0:01:07]} 30. Be6 {[%clk 0:00:30]}  Bc8 {[%clk 0:00:57]} 31. Bxc8 {[%clk 0:00:21]}  Rxc8 {[%clk 0:00:56]} 32. Re1 {[%clk 0:00:16]}  Re8 {[%clk 0:00:54]} 33. g3 {[%clk 0:00:10]}  e4 {[%clk 0:00:51]} 34. Rc1 {[%clk 0:00:08]}  e3+ {[%clk 0:00:49]} 35. Ke2 {[%clk 0:00:09]}  Rd8 {[%clk 0:00:47]} 36. Rc2 {[%clk 0:00:06]}  Kb7 {[%clk 0:00:43]} 37. b5 {[%clk 0:00:03]}  c5 {[%clk 0:00:42]} 38. a4 {[%clk 0:00:02]}  Qd6 {[%clk 0:00:36]} 39. Qe4+ {[%clk 0:00:01]}  Kb8 {[%clk 0:00:34]} 40. Kxe3 {[%clk 0:00:01]}  Qd7 {[%clk 0:00:28]} 41. Kf3 {[%clk 0:00:01]}  Qd1+ {[%clk 0:00:25]} 42. Qe2 {[%clk 0:00:01]}  Qd5+ {[%clk 0:00:23]} 43. Kf2 {[%clk 0:00:02]}  Qh1 {[%clk 0:00:22]} 44. Qf3 {[%clk 0:00:02]}  Qxh2+ {[%clk 0:00:20]} 45. Qg2 {[%clk 0:00:03]}  Qh5 {[%clk 0:00:19]} 46. Qf3 {[%clk 0:00:02]}  Qh2+ {[%clk 0:00:19]} 47. Qg2 {[%clk 0:00:03]}  Qh5 {[%clk 0:00:19]} 48. Qf3 {[%clk 0:00:03]}  Qh2+ {[%clk 0:00:19]} 1/2-1/2


[Site "https://www.chess.com"]

[Event "Titled Tuesday Blitz April 25 Early 2023"]
[White "Pavlidis, Anastasios"]
[Black "Fan_Of_Chucky"]
[WhiteFideId "4208404"]
[WhiteElo "2210"]
[BlackElo "2420"]
[Result "1/2-1/2"]
[Round "09"]
[TimeControl "180+2"]
[Date "2023.04.25"]
[WhiteClock "0:02:17"]
[BlackClock "0:00:10"]

1. e4 {[%clk 0:03:00]}  c5 {[%clk 0:02:53]} 2. Nf3 {[%clk 0:03:00]}  a6 {[%clk 0:02:53]} 3. c4 {[%clk 0:03:00]}  Nc6 {[%clk 0:02:53]} 4. Nc3 {[%clk 0:02:59]}  Nd4 {[%clk 0:02:51]} 5. Nxd4 {[%clk 0:02:59]}  cxd4 {[%clk 0:02:52]} 6. Ne2 {[%clk 0:02:59]}  e5 {[%clk 0:02:50]} 7. d3 {[%clk 0:02:59]}  b5 {[%clk 0:02:45]} 8. cxb5 {[%clk 0:02:58]}  axb5 {[%clk 0:02:45]} 9. g3 {[%clk 0:02:57]}  Bb7 {[%clk 0:02:44]} 10. Bg2 {[%clk 0:02:58]}  Nf6 {[%clk 0:02:40]} 11. O-O {[%clk 0:02:58]}  Be7 {[%clk 0:02:32]} 12. f4 {[%clk 0:02:57]}  d6 {[%clk 0:02:32]} 13. h3 {[%clk 0:02:57]}  O-O {[%clk 0:02:23]} 14. f5 {[%clk 0:02:57]}  d5 {[%clk 0:02:22]} 15. exd5 {[%clk 0:02:54]}  Bxd5 {[%clk 0:02:21]} 16. g4 {[%clk 0:02:54]}  Bxg2 {[%clk 0:02:19]} 17. Kxg2 {[%clk 0:02:54]}  Qd5+ {[%clk 0:02:11]} 18. Kh2 {[%clk 0:02:54]}  Rfd8 {[%clk 0:01:45]} 19. Ng3 {[%clk 0:02:54]}  e4 {[%clk 0:01:43]} 20. dxe4 {[%clk 0:02:53]}  Nxe4 {[%clk 0:01:44]} 21. Nxe4 {[%clk 0:02:54]}  Qxe4 {[%clk 0:01:45]} 22. Bf4 {[%clk 0:02:53]}  Bd6 {[%clk 0:01:42]} 23. Bxd6 {[%clk 0:02:52]}  Rxd6 {[%clk 0:01:42]} 24. Qf3 {[%clk 0:02:52]}  Qxf3 {[%clk 0:01:38]} 25. Rxf3 {[%clk 0:02:52]}  d3 {[%clk 0:01:38]} 26. a3 {[%clk 0:02:46]}  Re8 {[%clk 0:01:31]} 27. Rf2 {[%clk 0:02:44]}  Re2 {[%clk 0:01:20]} 28. Rxe2 {[%clk 0:02:44]}  dxe2 {[%clk 0:01:21]} 29. Re1 {[%clk 0:02:44]}  Rd2 {[%clk 0:01:21]} 30. b4 {[%clk 0:02:44]}  h6 {[%clk 0:01:14]} 31. Kg2 {[%clk 0:02:43]}  Ra2 {[%clk 0:01:13]} 32. h4 {[%clk 0:02:43]}  h5 {[%clk 0:01:08]} 33. g5 {[%clk 0:02:43]}  Kf8 {[%clk 0:01:00]} 34. Kf2 {[%clk 0:02:43]}  Rxa3 {[%clk 0:00:59]} 35. Rxe2 {[%clk 0:02:43]}  Rh3 {[%clk 0:00:57]} 36. Re4 {[%clk 0:02:43]}  Rc3 {[%clk 0:00:48]} 37. Re5 {[%clk 0:02:41]}  Rc4 {[%clk 0:00:46]} 38. Rxb5 {[%clk 0:02:39]}  Rxh4 {[%clk 0:00:47]} 39. Kf3 {[%clk 0:02:36]}  Rh1 {[%clk 0:00:40]} 40. Rb8+ {[%clk 0:02:34]}  Ke7 {[%clk 0:00:40]} 41. Rb7+ {[%clk 0:02:35]}  Ke8 {[%clk 0:00:40]} 42. b5 {[%clk 0:02:33]}  Rf1+ {[%clk 0:00:34]} 43. Ke4 {[%clk 0:02:33]}  Re1+ {[%clk 0:00:33]} 44. Kd5 {[%clk 0:02:32]}  Rf1 {[%clk 0:00:29]} 45. Ke5 {[%clk 0:02:33]}  Re1+ {[%clk 0:00:29]} 46. Kd6 {[%clk 0:02:33]}  Rd1+ {[%clk 0:00:30]} 47. Kc6 {[%clk 0:02:33]}  Rf1 {[%clk 0:00:29]} 48. Rb8+ {[%clk 0:02:30]}  Ke7 {[%clk 0:00:29]} 49. f6+ {[%clk 0:02:29]}  gxf6 {[%clk 0:00:28]} 50. gxf6+ {[%clk 0:02:29]}  Rxf6+ {[%clk 0:00:28]} 51. Kc7 {[%clk 0:02:30]}  Rf1 {[%clk 0:00:15]} 52. Rh8 {[%clk 0:02:29]}  Rc1+ {[%clk 0:00:13]} 53. Kb7 {[%clk 0:02:27]}  Rh1 {[%clk 0:00:12]} 54. b6 {[%clk 0:02:27]}  Kf6 {[%clk 0:00:12]} 55. Kc7 {[%clk 0:02:27]}  Kg5 {[%clk 0:00:11]} 56. b7 {[%clk 0:02:27]}  Rc1+ {[%clk 0:00:12]} 57. Kd7 {[%clk 0:02:25]}  Rb1 {[%clk 0:00:12]} 58. b8=Q {[%clk 0:02:25]}  Rxb8 {[%clk 0:00:11]} 59. Rxb8 {[%clk 0:02:26]}  h4 {[%clk 0:00:12]} 60. Rb4 {[%clk 0:02:25]}  h3 {[%clk 0:00:09]} 61. Ke7 {[%clk 0:02:24]}  h2 {[%clk 0:00:08]} 62. Rb1 {[%clk 0:02:24]}  Kg4 {[%clk 0:00:08]} 63. Kf6 {[%clk 0:02:24]}  Kg3 {[%clk 0:00:09]} 64. Kg5 {[%clk 0:02:24]}  Kg2 {[%clk 0:00:10]} 65. Kg4 {[%clk 0:02:23]}  h1=Q {[%clk 0:00:09]} 66. Rxh1 {[%clk 0:02:16]}  Kxh1 {[%clk 0:00:10]} 67. Kf5 {[%clk 0:02:17]}  Kg1 {[%clk 0:00:10]} 68. Kf6 {[%clk 0:02:17]}  Kf1 {[%clk 0:00:10]} 69. Kxf7 {[%clk 0:02:17]} 1/2-1/2


[Site "https://www.chess.com"]

[Event "Titled Tuesday Blitz April 25 Early 2023"]
[White "Tsyhanchuk, Stanislav"]
[Black "Alexikov, Alexander"]
[WhiteFideId "13505130"]
[BlackFideId "14103958"]
[WhiteElo "2173"]
[BlackElo "2186"]
[Result "1-0"]
[Round "09"]
[TimeControl "180+2"]
[Date "2023.04.25"]
[WhiteClock "0:00:08"]
[BlackClock "0:00:08"]

1. e4 {[%clk 0:03:00]}  c5 {[%clk 0:02:59]} 2. Nf3 {[%clk 0:03:00]}  d6 {[%clk 0:03:00]} 3. d4 {[%clk 0:03:00]}  cxd4 {[%clk 0:03:00]} 4. Nxd4 {[%clk 0:03:01]}  Nf6 {[%clk 0:03:00]} 5. Nc3 {[%clk 0:03:01]}  a6 {[%clk 0:03:00]} 6. Bg5 {[%clk 0:03:00]}  Nbd7 {[%clk 0:02:59]} 7. f4 {[%clk 0:02:59]}  Qb6 {[%clk 0:02:59]} 8. Qd2 {[%clk 0:02:47]}  Qxb2 {[%clk 0:02:57]} 9. Rb1 {[%clk 0:02:48]}  Qa3 {[%clk 0:02:56]} 10. Bc4 {[%clk 0:02:45]}  Qc5 {[%clk 0:02:51]} 11. Bb3 {[%clk 0:02:40]}  h6 {[%clk 0:02:43]} 12. Bh4 {[%clk 0:02:37]}  b5 {[%clk 0:02:17]} 13. h3 {[%clk 0:02:17]}  Bb7 {[%clk 0:02:11]} 14. Bf2 {[%clk 0:02:17]}  Qc8 {[%clk 0:01:39]} 15. a3 {[%clk 0:00:59]}  g5 {[%clk 0:01:34]} 16. fxg5 {[%clk 0:00:56]}  hxg5 {[%clk 0:01:34]} 17. O-O {[%clk 0:00:53]}  g4 {[%clk 0:01:22]} 18. h4 {[%clk 0:00:48]}  Bh6 {[%clk 0:01:20]} 19. Qe1 {[%clk 0:00:37]}  Bf4 {[%clk 0:01:01]} 20. Bg3 {[%clk 0:00:31]}  Bxg3 {[%clk 0:00:53]} 21. Qxg3 {[%clk 0:00:32]}  Qc5 {[%clk 0:00:52]} 22. Ne2 {[%clk 0:00:09]}  e5 {[%clk 0:00:44]} 23. Bxf7+ {[%clk 0:00:09]}  Kxf7 {[%clk 0:00:43]} 24. Qxg4 {[%clk 0:00:09]}  Rad8 {[%clk 0:00:31]} 25. Qe6+ {[%clk 0:00:09]}  Kg6 {[%clk 0:00:27]} 26. Qf5+ {[%clk 0:00:09]}  Kf7 {[%clk 0:00:25]} 27. Qe6+ {[%clk 0:00:09]}  Kg6 {[%clk 0:00:24]} 28. Rf5 {[%clk 0:00:09]}  exd4 {[%clk 0:00:20]} 29. Rxc5 {[%clk 0:00:08]}  Nxc5 {[%clk 0:00:20]} 30. Qf5+ {[%clk 0:00:07]}  Kf7 {[%clk 0:00:19]} 31. Rf1 {[%clk 0:00:08]}  Nxe4 {[%clk 0:00:18]} 32. Nf4 {[%clk 0:00:07]}  Rde8 {[%clk 0:00:09]} 33. Qg6+ {[%clk 0:00:08]}  Ke7 {[%clk 0:00:08]} 34. Nh3 {[%clk 0:00:08]} 1-0


[Site "https://www.chess.com"]

[Event "Titled Tuesday Blitz April 25 Early 2023"]
[White "Belenkaya, Dina"]
[Black "Jiganchine, Roman"]
[WhiteFideId "24142654"]
[BlackFideId "2603667"]
[WhiteElo "2208"]
[BlackElo "2262"]
[Result "1-0"]
[Round "09"]
[TimeControl "180+2"]
[Date "2023.04.25"]
[WhiteClock "0:00:20"]
[BlackClock "0:00:06"]

1. Nf3 {[%clk 0:02:52]}  d5 {[%clk 0:02:58]} 2. d4 {[%clk 0:02:52]}  Nf6 {[%clk 0:02:54]} 3. Nbd2 {[%clk 0:02:53]}  Bf5 {[%clk 0:02:53]} 4. b4 {[%clk 0:02:53]}  e6 {[%clk 0:02:53]} 5. a3 {[%clk 0:02:51]}  h6 {[%clk 0:02:52]} 6. e3 {[%clk 0:02:50]}  a5 {[%clk 0:02:52]} 7. b5 {[%clk 0:02:49]}  Nbd7 {[%clk 0:02:52]} 8. c4 {[%clk 0:02:49]}  dxc4 {[%clk 0:02:50]} 9. Bxc4 {[%clk 0:02:48]}  a4 {[%clk 0:02:49]} 10. O-O {[%clk 0:02:47]}  Nb6 {[%clk 0:02:48]} 11. Ba2 {[%clk 0:02:46]}  Be7 {[%clk 0:02:47]} 12. Qe2 {[%clk 0:02:46]}  Bh7 {[%clk 0:02:45]} 13. Bb2 {[%clk 0:02:44]}  O-O {[%clk 0:02:45]} 14. e4 {[%clk 0:02:44]}  Re8 {[%clk 0:02:40]} 15. Rad1 {[%clk 0:02:27]}  Qb8 {[%clk 0:02:36]} 16. Ne5 {[%clk 0:02:16]}  Qa7 {[%clk 0:02:30]} 17. Bc3 {[%clk 0:02:11]}  Rad8 {[%clk 0:02:29]} 18. Nb1 {[%clk 0:02:04]}  Bf8 {[%clk 0:02:23]} 19. f4 {[%clk 0:02:01]}  Nbd7 {[%clk 0:02:14]} 20. Nxd7 {[%clk 0:01:51]}  Nxd7 {[%clk 0:02:08]} 21. f5 {[%clk 0:01:47]}  exf5 {[%clk 0:01:54]} 22. Qc4 {[%clk 0:01:31]}  Ne5 {[%clk 0:01:45]} 23. Qe2 {[%clk 0:01:30]}  f4 {[%clk 0:01:37]} 24. Rxf4 {[%clk 0:01:24]}  Bg6 {[%clk 0:01:26]} 25. Kh1 {[%clk 0:01:23]}  Nd7 {[%clk 0:01:00]} 26. Qg4 {[%clk 0:01:19]}  Kh7 {[%clk 0:00:46]} 27. Rxf7 {[%clk 0:00:48]}  Rxe4 {[%clk 0:00:35]} 28. Qf3 {[%clk 0:00:33]}  Nf6 {[%clk 0:00:23]} 29. Qxf6 {[%clk 0:00:30]}  Rd6 {[%clk 0:00:16]} 30. Qf3 {[%clk 0:00:25]}  c5 {[%clk 0:00:12]} 31. Rxf8 {[%clk 0:00:21]}  cxd4 {[%clk 0:00:08]} 32. Bg8+ {[%clk 0:00:22]}  Kh8 {[%clk 0:00:08]} 33. Bd5+ {[%clk 0:00:18]}  Kh7 {[%clk 0:00:07]} 34. Rh8+ {[%clk 0:00:19]}  Kxh8 {[%clk 0:00:06]} 35. Qf8+ {[%clk 0:00:19]}  Kh7 {[%clk 0:00:06]} 36. Qg8# {[%clk 0:00:20]} 1-0


[Site "https://www.chess.com"]

[Event "Titled Tuesday Blitz April 25 Early 2023"]
[White "Pandey Srishti"]
[Black "White, John S."]
[WhiteFideId "35093290"]
[BlackFideId "2502348"]
[WhiteElo "2083"]
[BlackElo "2040"]
[Result "1-0"]
[Round "09"]
[TimeControl "180+2"]
[Date "2023.04.25"]
[WhiteClock "0:02:16"]
[BlackClock "0:00:56"]

1. e4 {[%clk 0:03:00]}  e6 {[%clk 0:03:00]} 2. d4 {[%clk 0:02:59]}  d5 {[%clk 0:03:01]} 3. Nc3 {[%clk 0:03:00]}  Bb4 {[%clk 0:02:58]} 4. e5 {[%clk 0:03:00]}  c5 {[%clk 0:02:58]} 5. a3 {[%clk 0:03:00]}  Bxc3+ {[%clk 0:02:58]} 6. bxc3 {[%clk 0:03:01]}  Ne7 {[%clk 0:02:51]} 7. Qg4 {[%clk 0:03:01]}  O-O {[%clk 0:02:49]} 8. h4 {[%clk 0:03:00]}  Nbc6 {[%clk 0:02:44]} 9. h5 {[%clk 0:02:58]}  cxd4 {[%clk 0:02:35]} 10. Bh6 {[%clk 0:02:56]}  g6 {[%clk 0:02:09]} 11. Bxf8 {[%clk 0:02:48]}  Qxf8 {[%clk 0:02:04]} 12. cxd4 {[%clk 0:02:44]}  Nf5 {[%clk 0:02:02]} 13. c3 {[%clk 0:02:43]}  Qh6 {[%clk 0:01:53]} 14. Bd3 {[%clk 0:02:41]}  Kf8 {[%clk 0:01:46]} 15. Ne2 {[%clk 0:02:39]}  Bd7 {[%clk 0:01:43]} 16. Rb1 {[%clk 0:02:32]}  Na5 {[%clk 0:01:41]} 17. Rh3 {[%clk 0:02:30]}  Rc8 {[%clk 0:01:29]} 18. Nf4 {[%clk 0:02:25]}  Qg7 {[%clk 0:01:13]} 19. hxg6 {[%clk 0:02:23]}  fxg6 {[%clk 0:01:09]} 20. Qg5 {[%clk 0:02:20]}  Rxc3 {[%clk 0:01:05]} 21. Qd8+ {[%clk 0:02:16]}  Be8 {[%clk 0:00:56]} 22. Nxe6+ {[%clk 0:02:16]} 1-0


[Site "https://www.chess.com"]

[Event "Titled Tuesday Blitz April 25 Early 2023"]
[White "Stanisz, Patryk"]
[Black "Gutkin, Ilya"]
[WhiteFideId "1123106"]
[BlackFideId "16203470"]
[WhiteElo "2069"]
[BlackElo "2265"]
[Result "0-1"]
[Round "09"]
[TimeControl "180+2"]
[Date "2023.04.25"]
[WhiteClock "0:00:03"]
[BlackClock "0:00:28"]

1. d4 {[%clk 0:03:00]}  d5 {[%clk 0:02:58]} 2. c4 {[%clk 0:03:00]}  e6 {[%clk 0:02:57]} 3. Nf3 {[%clk 0:03:00]}  Nf6 {[%clk 0:02:58]} 4. Nc3 {[%clk 0:03:00]}  Bb4 {[%clk 0:02:56]} 5. Qa4+ {[%clk 0:02:59]}  Nc6 {[%clk 0:02:56]} 6. e3 {[%clk 0:02:59]}  O-O {[%clk 0:02:55]} 7. Bd2 {[%clk 0:02:58]}  Re8 {[%clk 0:02:45]} 8. Qc2 {[%clk 0:02:42]}  e5 {[%clk 0:02:34]} 9. dxe5 {[%clk 0:02:36]}  Nxe5 {[%clk 0:02:32]} 10. Nxe5 {[%clk 0:02:33]}  Rxe5 {[%clk 0:02:31]} 11. cxd5 {[%clk 0:02:34]}  Nxd5 {[%clk 0:02:24]} 12. Bc4 {[%clk 0:02:28]}  Nxc3 {[%clk 0:02:19]} 13. Bxc3 {[%clk 0:02:27]}  Bxc3+ {[%clk 0:02:19]} 14. Qxc3 {[%clk 0:02:26]}  Rg5 {[%clk 0:02:14]} 15. Rd1 {[%clk 0:02:11]}  Qe7 {[%clk 0:02:13]} 16. Bd5 {[%clk 0:01:50]}  c6 {[%clk 0:02:08]} 17. Bf3 {[%clk 0:01:50]}  Be6 {[%clk 0:01:52]} 18. a3 {[%clk 0:01:46]}  Rc5 {[%clk 0:01:46]} 19. Qb4 {[%clk 0:01:35]}  a5 {[%clk 0:01:43]} 20. Qd4 {[%clk 0:01:26]}  Bb3 {[%clk 0:01:34]} 21. Qd6 {[%clk 0:00:33]}  Qxd6 {[%clk 0:01:14]} 22. Rxd6 {[%clk 0:00:32]}  Rc1+ {[%clk 0:01:15]} 23. Bd1 {[%clk 0:00:32]}  Rb1 {[%clk 0:01:15]} 24. O-O {[%clk 0:00:10]}  Rxb2 {[%clk 0:01:08]} 25. Bxb3 {[%clk 0:00:03]}  Rxb3 {[%clk 0:01:09]} 26. Rfd1 {[%clk 0:00:03]}  g6 {[%clk 0:01:06]} 27. a4 {[%clk 0:00:04]}  Rb4 {[%clk 0:01:05]} 28. R6d4 {[%clk 0:00:04]}  Rxd4 {[%clk 0:01:02]} 29. Rxd4 {[%clk 0:00:04]}  Kf8 {[%clk 0:00:51]} 30. Kf1 {[%clk 0:00:04]}  Ke7 {[%clk 0:00:50]} 31. Ke2 {[%clk 0:00:04]}  Rd8 {[%clk 0:00:50]} 32. Rc4 {[%clk 0:00:03]}  Kd7 {[%clk 0:00:50]} 33. Rc2 {[%clk 0:00:03]}  Kc7 {[%clk 0:00:50]} 34. Rb2 {[%clk 0:00:03]}  b6 {[%clk 0:00:49]} 35. f3 {[%clk 0:00:03]}  Kb7 {[%clk 0:00:49]} 36. e4 {[%clk 0:00:04]}  Rd4 {[%clk 0:00:48]} 37. Ra2 {[%clk 0:00:03]}  Ka6 {[%clk 0:00:45]} 38. Ke3 {[%clk 0:00:04]}  Rb4 {[%clk 0:00:45]} 39. f4 {[%clk 0:00:02]}  b5 {[%clk 0:00:44]} 40. axb5+ {[%clk 0:00:01]}  cxb5 {[%clk 0:00:45]} 41. e5 {[%clk 0:00:01]}  a4 {[%clk 0:00:45]} 42. g4 {[%clk 0:00:02]}  Ka5 {[%clk 0:00:45]} 43. f5 {[%clk 0:00:02]}  Rxg4 {[%clk 0:00:30]} 44. e6 {[%clk 0:00:02]}  fxe6 {[%clk 0:00:29]} 45. fxe6 {[%clk 0:00:02]}  Rc4 {[%clk 0:00:29]} 46. e7 {[%clk 0:00:02]}  Rc8 {[%clk 0:00:30]} 47. Kd4 {[%clk 0:00:03]}  Re8 {[%clk 0:00:30]} 48. Kc5 {[%clk 0:00:04]}  Rxe7 {[%clk 0:00:29]} 49. Rd2 {[%clk 0:00:04]}  Rc7+ {[%clk 0:00:29]} 50. Kd6 {[%clk 0:00:04]}  Rc3 {[%clk 0:00:28]} 51. Rd5 {[%clk 0:00:02]}  a3 {[%clk 0:00:28]} 52. Re5 {[%clk 0:00:02]}  a2 {[%clk 0:00:28]} 53. Re1 {[%clk 0:00:03]} 0-1


[Site "https://www.chess.com"]

[Event "Titled Tuesday Blitz April 25 Early 2023"]
[White "Semenova, Alina"]
[Black "Luong Phuong Hanh"]
[WhiteFideId "24113875"]
[BlackFideId "12401013"]
[WhiteElo "1833"]
[BlackElo "2081"]
[Result "1-0"]
[Round "09"]
[TimeControl "180+2"]
[Date "2023.04.25"]
[WhiteClock "0:01:55"]
[BlackClock "0:01:49"]

1. e4 {[%clk 0:03:00]}  c5 {[%clk 0:02:55]} 2. Nf3 {[%clk 0:02:59]}  e6 {[%clk 0:02:55]} 3. d4 {[%clk 0:03:00]}  cxd4 {[%clk 0:02:55]} 4. Nxd4 {[%clk 0:03:01]}  a6 {[%clk 0:02:55]} 5. c4 {[%clk 0:02:58]}  Nf6 {[%clk 0:02:54]} 6. Nc3 {[%clk 0:02:58]}  Qc7 {[%clk 0:02:54]} 7. Be2 {[%clk 0:02:57]}  d6 {[%clk 0:02:53]} 8. O-O {[%clk 0:02:57]}  Nbd7 {[%clk 0:02:53]} 9. Kh1 {[%clk 0:02:56]}  Be7 {[%clk 0:02:54]} 10. f4 {[%clk 0:02:55]}  O-O {[%clk 0:02:55]} 11. Be3 {[%clk 0:02:54]}  b6 {[%clk 0:02:54]} 12. Bf3 {[%clk 0:02:39]}  Bb7 {[%clk 0:02:55]} 13. Qd2 {[%clk 0:02:36]}  Qxc4 {[%clk 0:02:53]} 14. Rac1 {[%clk 0:02:33]}  Qb4 {[%clk 0:02:46]} 15. a3 {[%clk 0:02:32]}  Qa5 {[%clk 0:02:45]} 16. Nb3 {[%clk 0:02:14]}  Qxc3 {[%clk 0:02:10]} 17. Rxc3 {[%clk 0:02:04]}  Nc5 {[%clk 0:02:08]} 18. Nxc5 {[%clk 0:02:03]}  bxc5 {[%clk 0:02:08]} 19. e5 {[%clk 0:02:04]}  Nd5 {[%clk 0:02:08]} 20. Bxd5 {[%clk 0:02:03]}  exd5 {[%clk 0:02:04]} 21. exd6 {[%clk 0:02:03]}  Bxd6 {[%clk 0:02:03]} 22. Bxc5 {[%clk 0:02:03]}  Bxc5 {[%clk 0:01:55]} 23. Rxc5 {[%clk 0:02:04]}  Rad8 {[%clk 0:01:55]} 24. Qd4 {[%clk 0:01:58]}  h6 {[%clk 0:01:55]} 25. f5 {[%clk 0:01:58]}  Rfe8 {[%clk 0:01:54]} 26. f6 {[%clk 0:01:58]}  g6 {[%clk 0:01:54]} 27. Qh4 {[%clk 0:01:58]}  h5 {[%clk 0:01:54]} 28. Qg5 {[%clk 0:01:55]}  Kh7 {[%clk 0:01:49]} 29. Rc7 {[%clk 0:01:55]} 1-0


[Site "https://www.chess.com"]

[Event "Titled Tuesday Blitz April 25 Early 2023"]
[White "egorchess95"]
[Black "Fierz, Martin"]
[BlackFideId "1302132"]
[WhiteElo "2518"]
[BlackElo "2290"]
[Result "1-0"]
[Round "09"]
[TimeControl "180+2"]
[Date "2023.04.25"]
[WhiteClock "0:00:15"]
[BlackClock "0:00:06"]

1. e4 {[%clk 0:02:59]}  c5 {[%clk 0:02:59]} 2. Nf3 {[%clk 0:02:58]}  e6 {[%clk 0:02:53]} 3. c3 {[%clk 0:02:55]}  d5 {[%clk 0:02:52]} 4. e5 {[%clk 0:02:55]}  d4 {[%clk 0:02:51]} 5. Bd3 {[%clk 0:02:54]}  Nc6 {[%clk 0:02:50]} 6. O-O {[%clk 0:02:53]}  Be7 {[%clk 0:02:46]} 7. Qe2 {[%clk 0:02:53]}  Nh6 {[%clk 0:02:43]} 8. Na3 {[%clk 0:02:45]}  Nf5 {[%clk 0:02:42]} 9. Nc2 {[%clk 0:02:43]}  O-O {[%clk 0:02:38]} 10. Bxf5 {[%clk 0:02:13]}  exf5 {[%clk 0:02:34]} 11. d3 {[%clk 0:02:13]}  h6 {[%clk 0:02:23]} 12. h3 {[%clk 0:01:47]}  Be6 {[%clk 0:02:20]} 13. Bf4 {[%clk 0:01:46]}  g5 {[%clk 0:02:18]} 14. Bh2 {[%clk 0:01:45]}  Qd5 {[%clk 0:02:03]} 15. c4 {[%clk 0:01:12]}  Qd7 {[%clk 0:02:01]} 16. a3 {[%clk 0:01:10]}  a5 {[%clk 0:01:58]} 17. Nd2 {[%clk 0:01:04]}  Rfe8 {[%clk 0:01:54]} 18. f4 {[%clk 0:01:00]}  Rab8 {[%clk 0:01:15]} 19. a4 {[%clk 0:00:53]}  Nb4 {[%clk 0:01:09]} 20. Nxb4 {[%clk 0:00:53]}  axb4 {[%clk 0:01:10]} 21. b3 {[%clk 0:00:51]}  Bf8 {[%clk 0:01:03]} 22. Qh5 {[%clk 0:00:44]}  Qe7 {[%clk 0:01:01]} 23. Rae1 {[%clk 0:00:40]}  Bg7 {[%clk 0:01:01]} 24. Kh1 {[%clk 0:00:32]}  Bd7 {[%clk 0:00:59]} 25. Nf3 {[%clk 0:00:29]}  g4 {[%clk 0:00:28]} 26. hxg4 {[%clk 0:00:29]}  fxg4 {[%clk 0:00:29]} 27. Nd2 {[%clk 0:00:29]}  f5 {[%clk 0:00:23]} 28. exf6 {[%clk 0:00:22]}  Qxf6 {[%clk 0:00:24]} 29. Ne4 {[%clk 0:00:20]}  Qf5 {[%clk 0:00:20]} 30. Qxf5 {[%clk 0:00:20]}  Bxf5 {[%clk 0:00:21]} 31. Nxc5 {[%clk 0:00:20]}  Re3 {[%clk 0:00:16]} 32. Rxe3 {[%clk 0:00:18]}  dxe3 {[%clk 0:00:16]} 33. Re1 {[%clk 0:00:19]}  Bd4 {[%clk 0:00:14]} 34. Ne4 {[%clk 0:00:18]}  Re8 {[%clk 0:00:13]} 35. Ng3 {[%clk 0:00:18]}  Bxd3 {[%clk 0:00:12]} 36. Rd1 {[%clk 0:00:18]}  e2 {[%clk 0:00:12]} 37. Nxe2 {[%clk 0:00:18]}  Rxe2 {[%clk 0:00:12]} 38. Bg1 {[%clk 0:00:14]}  Bxg1 {[%clk 0:00:11]} 39. Rxd3 {[%clk 0:00:14]}  Re1 {[%clk 0:00:08]} 40. g3 {[%clk 0:00:14]}  Bc5+ {[%clk 0:00:07]} 41. Kg2 {[%clk 0:00:15]}  Re2+ {[%clk 0:00:07]} 42. Kf1 {[%clk 0:00:15]}  b6 {[%clk 0:00:06]} 43. Kxe2 {[%clk 0:00:15]} 1-0


[Site "https://www.chess.com"]